fUSD/lending_fUSD_20260413
["ID","MTS","AMOUNT","RATE_DAILY","PERIOD"]
[420351559,1776009645940,150.0,0.0003,120]
[420351561,1776009745767,150.0,0.0003,120]
[420351562,1776009780762,150.0,0.0003,120]
[420351563,1776009797728,156.70647839,0.0003,120]
[420351565,1776009939450,-250.0,0.00013,2]
[420351566,1776009939489,-139.46860217,0.00013,15]
[420351567,1776010166237,-176.39,0.00012625,2]
[420351568,1776010166302,-2584.52382403,0.00013,15]
[420351569,1776010166353,-3620.63736986,0.0001305,2]
[420351570,1776010166395,-300.0,0.00013886,2]
[420351571,1776010166424,-1447.024134,0.00013887,2]
[420351572,1776010166477,-300.0,0.00013887,2]
[420351573,1776010166505,-200.0,0.00013887,2]
[420351574,1776010166537,-860.06268659,0.00014299,2]
[420351587,1776010238417,-151.0,0.00014783,2]
[420351588,1776010238429,-200.0,0.00014806,2]
[420351590,1776010238457,-552.86757069,0.00014989,2]
[420351592,1776010238470,-647.13242931,0.00014989,2]
[420351594,1776010238491,-300.0,0.00014989,2]
[420351596,1776010238507,-181.24344094,0.0001499,2]
[420351813,1776010241556,-1442.32233601,0.0001499,2]
[420351833,1776010241849,-400.6182479,0.0001499,2]
[420351834,1776010241864,-1820.89468532,0.0001499,2]
[420351835,1776010241958,-668.81441582,0.0001499,2]
[420351865,1776010242605,-678.69275224,0.0001499,2]
[420351938,1776010243567,-1027.23724345,0.0001499,2]
[420351941,1776010243584,-7085.45450036,0.0001499,2]
[420352046,1776010246249,-139848.24975776,0.0001499,2]
[420352047,1776010246290,-429711.65971334,0.0001499,2]
[420352048,1776010246403,-387.93218086,0.0001499,2]
[420352049,1776010246415,-2547.78827528,0.0001499,2]
[420352050,1776010246496,-370.27145567,0.0001499,2]
[420352051,1776010246615,-3766.79534422,0.0001499,2]
[420352052,1776010246628,-1791.36975078,0.0001499,2]
[420352059,1776010280623,5700.84808415,0.00030137,120]
[420352060,1776010442886,500.0,0.0003013,120]
[420352062,1776010480427,150.008,0.00030137,120]
[420352064,1776010597475,693.393027,0.00029819,120]
[420352065,1776010692209,619.082362,0.00030037,120]
[420352066,1776010702733,196.386274,0.00029819,120]
[420352067,1776010725287,557.195674,0.00029819,120]
[420352068,1776010756711,1421.117458,0.00029819,120]
[420352069,1776010841782,1297.192729,0.00029775,120]
[420352070,1776010842018,345.784137,0.00029775,120]
[420352071,1776010845330,285.79,0.00030137,120]
[420352072,1776010867011,878.18896,0.00029081,120]
[420352073,1776010883802,172.892069,0.00028158,120]
[420352074,1776010928515,282.832308,0.00028158,120]
[420352075,1776010972158,6352.31724875,8.55e-05,2]
[420352076,1776010972242,207.83541711,8.55e-05,2]
[420352077,1776010972304,291.24733414,8.55e-05,2]
[420352078,1776010972337,945.08096725,8.55e-05,2]
[420352079,1776010972396,859.85912804,8.55e-05,2]
[420352080,1776011015108,634.427435,0.00026838,120]
[420352081,1776011029711,264.731381,0.00026849,120]
[420352082,1776011043468,342.569513,0.00024889,120]
[420352083,1776011086947,171.284756,0.00024913,120]
[420352084,1776011121641,600.552189,0.00026594,120]
[420352085,1776011133236,315.793124,0.00026849,120]
[420352086,1776011191410,4557.03756015,0.0003013,120]
[420352087,1776011207293,3000.0,0.00030137,120]
[420352088,1776011232188,3000.0,0.00030137,120]
[420352089,1776011246215,-166.66,0.00013699,2]
[420352090,1776011246252,-7.62110638,0.0001384,2]
[420352091,1776011347499,-250.0,0.00013,2]
[420352092,1776011347538,-1777.59,0.00013812,2]
[420352093,1776011347571,-1492.37889362,0.0001384,2]
[420352094,1776011347598,-474.83,0.00013865,2]
[420352095,1776011347622,-359.11766866,0.00013892,2]
[420352096,1776011347650,-312.7,0.00013921,2]
[420352097,1776011347675,-166.66,0.00013937,2]
[420352098,1776011347712,-150.0,0.00013938,2]
[420352099,1776011347748,-1200.0,0.00013991,2]
[420352100,1776011347780,-300.0,0.00013991,2]
[420352101,1776011347805,-2212.47913572,0.00013992,2]
[420352102,1776011354110,-8330.63367042,0.00013992,2]
[420352103,1776011416258,887.49,6.966e-05,2]
[420352104,1776011416483,887.49,7.332e-05,2]
[420352105,1776011416718,887.49,7.699e-05,2]
[420352106,1776011416943,887.49,8.066e-05,2]
[420352107,1776011417072,887.49,8.432e-05,2]
[420352124,1776011433774,-722.84771587,8.799e-05,2]
[420352125,1776011433832,-164.64228413,8.799e-05,2]
[420352126,1776011433850,-887.49,9.166e-05,2]
[420352127,1776011433869,-887.49,9.532e-05,2]
[420352128,1776011433879,-887.49,9.899e-05,2]
[420352129,1776011433899,-887.49,0.00010265,2]
[420352130,1776011433909,-887.49,0.00010632,2]
[420352131,1776011433918,-528.63634418,0.00010999,2]
[420352132,1776011433935,-358.85365582,0.00010999,2]
[420352133,1776011433948,-887.49,0.00011365,2]
[420352134,1776011433957,-887.49,0.00011732,2]
[420352135,1776011433971,-887.49,0.00012099,2]
[420352136,1776011433987,-887.49,0.00012465,2]
[420352137,1776011433997,-887.49,0.00012832,2]
[420352138,1776011434011,-887.49,0.00013199,2]
[420352139,1776011434030,-887.49,0.00013565,2]
[420352140,1776011434040,-887.49,0.00013932,2]
[420352141,1776011434059,-300.0,0.00013991,2]
[420352142,1776011434089,-1200.0,0.00013991,2]
[420352143,1776011434123,-9828.12721144,0.00013992,2]
[420352144,1776011434142,-370.97500365,0.00013992,2]
[420352145,1776011434164,-685.28174376,0.00013992,2]
[420352146,1776011434180,-381.96994645,0.00013992,2]
[420352147,1776011434310,-1255.39034168,0.00013992,2]
[420352148,1776011434334,-1559.44294688,0.00013992,2]
[420352149,1776011434350,-166.66,0.00014175,2]
[420352150,1776011434368,-150.0,0.00014258,2]
[420352151,1776011434383,-299.99999999,0.0001432,2]
[420352152,1776011434392,-359.11766864,0.00014387,2]
[420352153,1776011434413,-166.66,0.00014413,2]
[420352154,1776011434431,-4314.28854699,0.0001444,2]
[420352155,1776011434442,-159.52,0.00014455,2]
[420352156,1776011434467,-312.7,0.00014617,2]
[420352157,1776011434477,-166.66,0.00014651,2]
[420352158,1776011434505,-150.0,0.0001469,2]
[420352159,1776011434519,-150.0,0.0001484,2]
[420352160,1776011434532,-150.39907194,0.0001484,2]
[420352161,1776011434555,-745.59588571,0.0001485,2]
[420352162,1776011434572,-625.05307491,0.0001485,2]
[420352163,1776011434594,-8285.435179,0.0001485,2]
[420352164,1776011434616,-415.00381857,0.00014878,2]
[420352165,1776011434625,-552.11865897,0.00014878,2]
[420352166,1776011434656,-150.0,0.00014878,2]
[420352167,1776011434669,-240146.37117677,0.00014879,2]
[420352168,1776011434697,-934.45208279,0.00014879,2]
[420352180,1776011438532,-48832.341186,0.00014879,2]
[420352181,1776011438546,-113231.04305444,0.00014879,2]
[420352182,1776011438559,-2949.3464,0.00014879,2]
[420352183,1776011438591,-359.11766864,0.00014881,2]
[420352184,1776011438603,-166.66,0.00014889,2]
[420352185,1776011438638,-1583.8677,0.0001489,2]
[420352186,1776011438652,-1741.70317392,0.0001489,2]
[420352187,1776011438684,-218.24,0.00014945,2]
[420352188,1776011438703,-53923.24031167,0.00014979,2]
[420352189,1776011438728,-151.0,0.00014981,2]
[420352190,1776011438741,-151.0,0.00014981,2]
[420352191,1776011438762,-151.0,0.00014981,2]
[420352192,1776011438772,-151.0,0.00014981,2]
[420352193,1776011438785,-151.0,0.00014981,2]
[420352194,1776011438794,-151.0,0.00014981,2]
[420352196,1776011438812,-151.0,0.00014981,2]
[420352197,1776011438827,-151.0,0.00014981,2]
[420352199,1776011438836,-151.0,0.00014981,2]
[420352200,1776011438858,-151.0,0.00014981,2]
[420352201,1776011438873,-151.0,0.00014981,2]
[420352202,1776011438884,-151.0,0.00014981,2]
[420352203,1776011438909,-151.0,0.00014981,2]
[420352204,1776011438924,-151.0,0.00014981,2]
[420352205,1776011438940,-151.0,0.00014981,2]
[420352206,1776011438964,-151.0,0.00014981,2]
[420352207,1776011438976,-151.0,0.00014981,2]
[420352208,1776011438991,-151.0,0.00014981,2]
[420352209,1776011439012,-151.0,0.00014981,2]
[420352210,1776011439032,-155.26154929,0.00014981,2]
[420352211,1776011439058,-500.0,0.00014989,2]
[420352212,1776011439075,-500.0,0.00014989,2]
[420352213,1776011439102,-1156.205,0.00014989,2]
[420352214,1776011439114,-500.0,0.00014989,2]
[420352215,1776011439132,-500.0,0.00014989,2]
[420352216,1776011439152,-500.0,0.00014989,2]
[420352217,1776011439161,-500.0,0.00014989,2]
[420352218,1776011439187,-500.0,0.00014989,2]
[420352219,1776011439198,-500.0,0.00014989,2]
[420352220,1776011439207,-151.0,0.0001499,2]
[420352221,1776011439229,-209.7856512,0.0001499,2]
[420352222,1776011439239,-500.0,0.00014999,2]
[420352223,1776011439249,-436.4620107,0.00015,2]
[420352224,1776011439269,-882.60021356,0.00015,2]
[420352225,1776011439279,-975.37026776,0.00015,2]
[420352226,1776011439288,-1000.0,0.00015,2]
[420352227,1776011439298,-300.0,0.00015,2]
[420352228,1776011439319,-5000.0,0.00015033,2]
[420352229,1776011439328,-1762.15609291,0.00015033,2]
[420352230,1776011439337,-28566.32715686,0.00015099,2]
[420352231,1776011439359,-500.0,0.00015132,2]
[420352232,1776011439368,-3172.8218932,0.00015133,2]
[420352233,1776011439377,-246716.89377706,0.00015133,2]
[420352234,1776011439562,-730.938443,0.00015133,2]
[420352235,1776011439585,-18985.52112299,0.00015133,2]
[420352236,1776011439628,-103609.96844548,0.00015133,2]
[420352237,1776011439641,-334.32300066,0.00015133,2]
[420352241,1776011441720,-212.62838764,0.00014878,2]
[420352242,1776011441731,-207.02120852,0.00014878,2]
[420352243,1776011441744,-87.53040384,0.00014878,2]
[420352244,1776011441755,-98.0351827,0.00014878,2]
[420352245,1776011441768,-1485.37808648,0.00015133,2]
[420352246,1776011441791,-710.01958045,0.00015133,2]
[420352247,1776011441841,-1296.51320961,0.00015133,2]
[420352248,1776011442480,-891.68876871,0.00015133,2]
[420352249,1776011442491,-545.37630796,0.00015133,2]
[420352270,1776011444431,-1143.02930338,0.00015133,2]
[420352271,1776011444463,-13515.88400268,0.00015133,2]
[420352272,1776011444635,-781.15500221,0.00015133,2]
[420352273,1776011444693,-1350.04634947,0.00015133,2]
[420352274,1776011444705,-1057.89460526,0.00015133,2]
[420352275,1776011444717,-7765.24741519,0.00015133,2]
[420352276,1776011444747,-97362.95887569,0.00015133,2]
[420352277,1776011444759,-493.37811571,0.00015133,2]
[420352278,1776011444785,-5092.0076519,0.00015133,2]
[420352279,1776011445234,-892.76309765,0.00015133,2]
[420352280,1776011445248,-680.76275655,0.00015133,2]
[420352294,1776011448750,-450.54704199,0.00015133,2]
[420352295,1776011448831,-1123.71239335,0.00015133,2]
[420352296,1776011448872,-9988.02,0.00015133,2]
[420352297,1776011449000,-73978.74827167,0.00015133,2]
[420352298,1776011449013,-7164.1623854,0.00015133,2]
[420352299,1776011449052,-5370.2043314,0.00015133,2]
[420352300,1776011449076,-211.57312332,0.00015133,2]
[420352301,1776011449151,-151.0,0.00015133,2]
[420352302,1776011449175,-12534.3667165,0.00015254,2]
[420352303,1776011449230,-500.0,0.00015263,2]
[420352304,1776011449240,-312.7,0.00015313,2]
[420352305,1776011449250,-420.0,0.00015328,2]
[420352306,1776011449273,-1680.0,0.0001539,2]
[420352307,1776011449283,-714.42,0.00015507,2]
[420352308,1776011449293,-474.83,0.00015598,2]
[420352309,1776011449313,-152.0,0.00015626,7]
[420352310,1776011449329,-152.0,0.00015626,7]
[420352311,1776011449338,-152.0,0.00015626,7]
[420352312,1776011449349,-152.0,0.00015626,7]
[420352313,1776011449359,-714.42,0.00015895,2]
[420352314,1776011449372,-277.92741609,0.0001599,2]
[420352315,1776011449383,-150.0,0.00015999,2]
[420352316,1776011449393,-136038.34643604,0.00016,2]
[420352317,1776011449403,-250.0,0.00016,2]
[420352318,1776011449415,-349.09,0.00016,2]
[420352319,1776011449424,-208.85913349,0.00016,2]
[420352320,1776011449435,-255.0,0.00016008,2]
[420352321,1776011449445,-312.7,0.00016009,2]
[420352322,1776011449465,-208.85913349,0.000161,2]
[420352323,1776011449475,-404.46,0.00016116,2]
[420352324,1776011449495,-208.85913349,0.000162,2]
[420352325,1776011449509,-714.42,0.00016282,2]
[420352326,1776011449519,-500.0,0.00016546,2]
[420352327,1776011449539,-500.0,0.00016546,2]
[420352328,1776011449567,-500.0,0.00016546,2]
[420352329,1776011449579,-565.01383219,0.00016546,2]
[420352330,1776011449595,-500.0,0.00016546,2]
[420352331,1776011449609,-502.19224822,0.00016546,2]
[420352332,1776011449623,-714.42,0.0001667,2]
[420352333,1776011449634,-312.7,0.00016705,2]
[420352334,1776011449664,-187.22,0.00016712,2]
[420352335,1776011449698,-587.0,0.00016792,2]
[420352336,1776011449721,-1741.0,0.00016929,2]
[420352337,1776011449734,-230.98,0.00017019,2]
[420352338,1776011449745,-131866.0813702,0.00017052,2]
[420352339,1776011449773,-1598.5407003,0.00017052,2]
[420352340,1776011449783,-714.42,0.00017058,2]
[420352341,1776011449795,-500.0,0.00017094,2]
[420352342,1776011449817,-1000.0,0.00017094,2]
[420352343,1776011449828,-160.0,0.00017149,2]
[420352344,1776011449838,-2796.7952528,0.00017189,2]
[420352345,1776011449861,-433.0,0.00017228,2]
[420352346,1776011449873,-474.83,0.00017331,2]
[420352347,1776011449884,-157.9655005,0.00017481,2]
[420352348,1776011449913,-14649.40802862,0.00017481,2]
[420352349,1776011449936,-14773.89182558,0.00017481,2]
[420352350,1776011449956,-356.6826424,0.00017481,2]
[420352351,1776011449970,-6328.4832831,0.00017524,2]
[420352352,1776011449992,-1741.7031739,0.00017547,2]
[420352353,1776011450002,-624.0493726,0.0001762,2]
[420352354,1776011450021,-500.0,0.00017642,2]
[420352355,1776011450036,-1762.15609287,0.00017674,2]
[420352356,1776011450059,-1198.2545525,0.00018015,2]
[420352357,1776011450069,-823.0,0.00018397,2]
[420352358,1776011450081,-736.0,0.00018538,2]
[420352359,1776011450116,-267.3667301,0.00018658,2]
[420352360,1776011450126,-474.83,0.00019064,2]
[420352361,1776011450143,-169.837364,0.000196,7]
[420352362,1776011450158,-215.086888,0.000196,2]
[420352363,1776011450168,-398.187425,0.000196,7]
[420352364,1776011450185,-237.910288,0.000196,7]
[420352365,1776011450197,-172.70389604,0.000199,2]
[420352366,1776011450222,-200000.0,0.0002,2]
[420352367,1776011450232,-1990.22079009,0.0002,2]
[420352368,1776011450247,-106333.53527542,0.0002,2]
[420352369,1776011450269,-1272.49765858,0.0002,2]
[420352370,1776011450329,-431.885,0.0002,2]
[420352371,1776011450343,-804.94870996,0.0002,2]
[420352372,1776011450409,-1423.40184853,0.0002,2]
[420352373,1776011453876,254.756046,0.00026838,120]
[420352374,1776011929714,346.097587,0.00029775,120]
[420352375,1776011970555,173.048794,0.00029534,120]
[420352379,1776012278761,180.624909,0.00028944,120]
[420352381,1776012439152,-170.45605225,0.00014483,2]
[420352394,1776012632788,-754.50794775,0.00014483,2]
[420352395,1776012632805,-931.00323404,0.000146,2]
[420352396,1776012632818,-3000.0,0.000146,5]
[420352397,1776012632830,-300.0,0.00014678,2]
[420352398,1776012632845,-5000.0,0.00014679,2]
[420352399,1776012632859,-169.85754941,0.00014679,2]
[420352400,1776012632871,-1409.72487435,0.00014679,2]
[420352401,1776012632884,-1410.40563089,0.00014679,2]
[420352402,1776012632896,-727.99325084,0.00014679,2]
[420352403,1776012632907,-835.08194218,0.00014679,2]
[420352404,1776012632918,-6000.0,0.000147,5]
[420352405,1776012632932,-185.28494406,0.00014769,2]
[420352406,1776012632947,-200.0,0.0001477,2]
[420352407,1776012632958,-151.0,0.0001477,2]
[420352408,1776012632972,-500.0,0.0001477,2]
[420352409,1776012632984,-151.0,0.0001477,2]
[420352410,1776012632995,-500.0,0.0001477,2]
[420352411,1776012633011,-151.0,0.0001477,2]
[420352412,1776012633022,-500.0,0.0001477,2]
[420352413,1776012633034,-151.0,0.0001477,2]
[420352414,1776012633045,-500.0,0.0001477,2]
[420352415,1776012633058,-151.0,0.0001477,2]
[420352416,1776012633069,-500.0,0.0001477,2]
[420352417,1776012633080,-151.0,0.0001477,2]
[420352418,1776012633091,-500.0,0.0001477,2]
[420352419,1776012633105,-151.0,0.0001477,2]
[420352420,1776012633117,-500.0,0.0001477,2]
[420352421,1776012633129,-151.0,0.0001477,2]
[420352422,1776012633142,-500.0,0.0001477,2]
[420352423,1776012633153,-151.0,0.0001477,2]
[420352424,1776012633165,-500.0,0.0001477,2]
[420352425,1776012633177,-151.0,0.0001477,2]
[420352426,1776012633188,-151.0,0.0001477,2]
[420352427,1776012633199,-151.0,0.0001477,2]
[420352428,1776012633212,-151.0,0.0001477,2]
[420352429,1776012633224,-151.0,0.0001477,2]
[420352430,1776012633235,-500.0,0.0001477,2]
[420352431,1776012633246,-500.0,0.0001477,2]
[420352432,1776012633258,-500.0,0.0001477,2]
[420352433,1776012633269,-500.0,0.0001477,2]
[420352434,1776012633280,-519.11226445,0.0001477,2]
[420352435,1776012633296,-500.0,0.00014778,2]
[420352436,1776012633307,-590.502673,0.00014778,2]
[420352437,1776012633319,-248.74095659,0.00014778,2]
[420352438,1776012633340,-296.57708343,0.00014778,2]
[420352439,1776012633355,-500.0,0.00014778,2]
[420352440,1776012633366,-23235.8955087,0.00014779,2]
[420352441,1776012633393,-45091.94505292,0.00014779,2]
[420352442,1776012633419,-51847.68276309,0.00014779,2]
[420352443,1776012633439,-463.60708434,0.00014779,2]
[420352444,1776012633488,-900.0,0.00014779,2]
[420352445,1776012633509,-836.39291566,0.00014779,2]
[420352449,1776012638522,-469.73578931,0.00014779,2]
[420352450,1776012638533,-974.33676083,0.00014779,2]
[420352451,1776012638548,-1136.36680803,0.00014779,2]
[420352452,1776012638590,-135065.9892068,0.00014779,2]
[420352453,1776012638610,-1051.74850456,0.00014779,2]
[420352454,1776012638789,-2190.42,0.00014779,2]
[420352455,1776012638802,-4619.42063202,0.00014779,2]
[420352456,1776012638813,-876768.19439195,0.00014779,2]
[420352457,1776012638830,-1454.76,0.00014779,2]
[420352458,1776012638914,-720.01455073,0.00014779,2]
[420352459,1776012638926,-1900.0,0.00014779,2]
[420352460,1776012638946,-3903.83753928,0.00014779,2]
[420352461,1776012638962,-372.30927531,0.00014779,2]
[420352508,1776012641049,-523.68582925,0.00014779,2]
[420352509,1776012641185,-3300.0,0.00014779,2]
[420352510,1776012641514,-18.93956137,0.00014779,2]
[420352511,1776012641543,-550.17228739,0.00014779,2]
[420352512,1776012641554,-4243.84506568,0.00014779,2]
[420352514,1776012641716,-1189.16608523,0.00014779,2]
[420352517,1776012643779,-512.12443701,0.00014779,2]
[420352518,1776012643790,-827.75733248,0.00014779,2]
[420352519,1776012643828,-7199.06878225,0.00014779,2]
[420352520,1776012643879,-626.00212722,0.00014779,2]
[420352527,1776012646397,-400.88914376,0.00014779,2]
[420352528,1776012646504,-165413.52295309,0.00014779,2]
[420352529,1776012646516,-345.53625,0.00014779,2]
[420352530,1776012646528,-4452.09999987,0.00014779,2]
[420352531,1776012646547,-608.21731146,0.00014779,2]
[420352532,1776012646559,-16031.52752629,0.00014779,2]
[420352533,1776012646573,-4143.3003933,0.00014779,2]
[420352534,1776012646585,-1434.61950838,0.00014779,2]
[420352535,1776012646874,-462.708,0.00014779,2]
[420352536,1776012646887,-1180.95304529,0.00014779,2]
[420352538,1776012647173,-14159.50809437,0.00014779,2]
[420352539,1776012647185,-42749.672503,0.00014779,2]
[420352540,1776012756504,155.0,0.0003013,120]
[420352541,1776012756965,1891.0,0.0003013,120]
[420352542,1776012757458,922.0,0.0003013,120]
[420352543,1776012759938,249.0,0.0003013,120]
[420352544,1776012760881,152.0,0.0003013,120]
[420352545,1776012761662,413.0,0.0003013,120]
[420352546,1776012762462,177.0,0.0003013,120]
[420352547,1776012763374,564.210101,0.00026124,120]
[420352548,1776012815967,605.0,0.0003013,120]
[420352549,1776012818060,189.0,0.0003013,120]
[420352550,1776012818515,419.92088965,0.0003013,120]
[420352551,1776012878293,591.17989117,0.0003013,120]
[420352566,1776013708451,178.71,6.54e-05,2]
[420352567,1776013753176,-233.7669809,0.00011798,2]
[420352568,1776013753204,-324.0,0.00011798,2]
[420352569,1776013753238,-300.0,0.00011892,2]
[420352570,1776013753261,-300.0,0.00011892,2]
[420352571,1776013753294,-1200.0,0.00011892,2]
[420352572,1776013753333,-151.0,0.00011893,2]
[420352573,1776013753361,-151.0,0.00011893,2]
[420352574,1776013753395,-151.0,0.00011893,2]
[420352575,1776013753430,-200.0,0.00011893,2]
[420352576,1776013753459,-151.0,0.00011893,2]
[420352577,1776013753488,-151.0,0.00011893,2]
[420352578,1776013753513,-151.0,0.00011893,2]
[420352579,1776013753544,-151.0,0.00011893,2]
[420352580,1776013753572,-151.0,0.00011893,2]
[420352581,1776013753599,-151.0,0.00011893,2]
[420352582,1776013753635,-151.0,0.00011893,2]
[420352583,1776013753666,-151.0,0.00011893,2]
[420352584,1776013753691,-151.0,0.00011893,2]
[420352585,1776013753724,-151.0,0.00011893,2]
[420352586,1776013753756,-1200.0,0.00011898,2]
[420352587,1776013753777,-150.0,0.00011899,2]
[420352588,1776013753808,-10101.37762399,0.000119,2]
[420352589,1776013753829,-233.76698089,0.00012551,2]
[420352590,1776013753857,-150.0,0.000129,2]
[420352591,1776013753879,-150.0,0.00012978,2]
[420352592,1776013753903,-3857.36692891,0.00012979,2]
[420352593,1776013753923,-193.0,0.00012979,2]
[420352594,1776013753950,-170.99428153,0.00013056,2]
[420352595,1776013755156,-326.0,0.00011893,2]
[420352596,1776013755224,-249.00571847,0.00013056,2]
[420352597,1776013755266,-420.0,0.00013056,2]
[420352598,1776013755332,-1680.0,0.00013088,2]
[420352599,1776013755392,-500.0,0.00013099,2]
[420352600,1776013755463,-150.0,0.00013103,2]
[420352601,1776013755506,-151.0,0.00013113,2]
[420352602,1776013755541,-233.76698089,0.00013303,2]
[420352603,1776013755771,-2000.0,0.00013411,2]
[420352604,1776013755801,-284.75,0.00013604,2]
[420352605,1776013755833,-150.0,0.00013604,2]
[420352606,1776013755863,-231.5,0.000137,2]
[420352607,1776013755935,-231.41,0.000137,2]
[420352608,1776013755959,-150.0,0.00013744,2]
[420352609,1776013756000,-150.0,0.00013744,2]
[420352610,1776013756023,-150.0,0.00013744,2]
[420352611,1776013756065,-462.83,0.0001383,2]
[420352612,1776013756088,-463.01,0.00013844,2]
[420352613,1776013756126,-288.02,0.00013844,2]
[420352614,1776013756152,-694.24,0.00013959,2]
[420352615,1776013756193,-166.66,0.0001398,2]
[420352616,1776013756217,-694.51,0.00013987,2]
[420352617,1776013756273,-432.04,0.00013987,2]
[420352618,1776013756311,-500.0,0.00014018,2]
[420352619,1776013756354,-255.0,0.00014081,2]
[420352620,1776013756415,-925.66,0.00014089,2]
[420352621,1776013756441,-205.7,0.00014089,2]
[420352622,1776013756477,-926.02,0.00014131,2]
[420352623,1776013756518,-576.05,0.00014131,2]
[420352624,1776013756564,-168.0,0.00014153,2]
[420352625,1776013756607,-1157.08,0.00014218,2]
[420352626,1776013756672,-257.13,0.00014218,2]
[420352627,1776013756718,-1157.52,0.00014275,2]
[420352628,1776013756784,-720.06,0.00014275,2]
[420352629,1776013756837,-307.51110822,0.00014292,2]
[420352630,1776013756887,-216.0,0.00014304,2]
[420352631,1776013756919,-587.0,0.00014334,2]
[420352632,1776013756969,-1388.49,0.00014348,2]
[420352633,1776013757000,-308.56,0.00014348,2]
[420352634,1776013757031,-397.77161665,0.00014383,2]
[420352639,1776013833146,-329.0,0.00014383,2]
[420352640,1776013833158,-102.22838335,0.00014383,2]
[420352641,1776013833169,-216.25,0.00014402,2]
[420352642,1776013833186,-333.31915909,0.00014419,2]
[420352643,1776013833198,-1055.71084091,0.00014419,2]
[420352644,1776013833215,-864.08,0.00014419,2]
[420352645,1776013833231,-166.66,0.00014442,2]
[420352646,1776013833245,-323.0,0.00014476,2]
[420352647,1776013833260,-1619.91,0.00014477,2]
[420352648,1776013833275,-359.98,0.00014477,2]
[420352649,1776013833291,-150.0,0.000145,2]
[420352650,1776013833308,-5712.02,0.00014548,2]
[420352651,1776013833326,-1620.53,0.00014562,2]
[420352652,1776013833344,-1008.09,0.00014562,2]
[420352653,1776013833368,-2187.9585,0.00014579,2]
[420352654,1776013833384,-46855.7933,0.00014579,2]
[420352655,1776013833393,-5000.0,0.00014579,2]
[420352656,1776013833418,-6431.0711,0.00014579,2]
[420352657,1776013833431,-2500.0,0.00014579,2]
[420352658,1776013833448,-169.85754936,0.00014579,2]
[420352659,1776013833464,-802.82387996,0.00014579,2]
[420352660,1776013833483,-1394.8022199,0.00014579,2]
[420352661,1776013833496,-1762.22341167,0.00014579,2]
[420352662,1776013833516,-185.28494406,0.00014669,2]
[420352663,1776013833535,-500.49627047,0.00014673,2]
[420352664,1776013833552,-500.0,0.00014673,2]
[420352665,1776013833580,-531.1,0.00014673,2]
[420352666,1776013833596,-483.36103957,0.00014677,2]
[420352667,1776013833618,-500.0,0.00014677,2]
[420352668,1776013833632,-500.0,0.00014677,2]
[420352669,1776013833660,-500.0,0.00014677,2]
[420352670,1776013833674,-500.0,0.00014677,2]
[420352671,1776013833688,-500.0,0.00014677,2]
[420352672,1776013833710,-500.0,0.00014677,2]
[420352673,1776013833719,-500.0,0.00014677,2]
[420352674,1776013833730,-500.0,0.00014677,2]
[420352675,1776013833752,-500.0,0.00014677,2]
[420352676,1776013833762,-500.0,0.00014677,2]
[420352677,1776013833772,-500.0,0.00014677,2]
[420352678,1776013833787,-555.02254987,0.00014677,2]
[420352679,1776013833803,-500.0,0.00014677,2]
[420352680,1776013833813,-500.0,0.00014677,2]
[420352681,1776013833822,-500.0,0.00014677,2]
[420352682,1776013833841,-500.0,0.00014677,2]
[420352683,1776013833852,-500.0,0.00014677,2]
[420352684,1776013833861,-500.0,0.00014677,2]